[Event "Titled Tuesday Blitz March 21 Early 2023"]
[White "Palacio,Igor Da Paz"]
[Black "Rottenwohrer Suarez, Juan"]
[WhiteFideId "2121140"]
[BlackFideId "32068182"]
[WhiteElo "2126"]
[BlackElo "2174"]
[Result "1-0"]
[Round "02"]
[TimeControl "180+2"]
[Date "2023.03.21"]
[WhiteClock "0:00:14"]
[BlackClock "0:00:01"]

1. e4 {[%clk 0:03:00]}  c5 {[%clk 0:02:53]} 2. Nc3 {[%clk 0:03:00]}  g6 {[%clk 0:02:50]} 3. g3 {[%clk 0:03:00]}  Bg7 {[%clk 0:02:51]} 4. Bg2 {[%clk 0:03:00]}  Nc6 {[%clk 0:02:52]} 5. d3 {[%clk 0:03:00]}  Nf6 {[%clk 0:02:52]} 6. f4 {[%clk 0:02:59]}  O-O {[%clk 0:02:52]} 7. Be3 {[%clk 0:02:52]}  d6 {[%clk 0:02:50]} 8. h3 {[%clk 0:02:51]}  Rb8 {[%clk 0:02:49]} 9. Rb1 {[%clk 0:02:50]}  Nd7 {[%clk 0:02:39]} 10. Nf3 {[%clk 0:02:49]}  b5 {[%clk 0:02:37]} 11. a3 {[%clk 0:02:48]}  a5 {[%clk 0:02:37]} 12. O-O {[%clk 0:02:48]}  Nd4 {[%clk 0:02:29]} 13. Ne2 {[%clk 0:02:45]}  Nxf3+ {[%clk 0:02:24]} 14. Rxf3 {[%clk 0:02:44]}  a4 {[%clk 0:02:19]} 15. g4 {[%clk 0:02:40]}  b4 {[%clk 0:02:18]} 16. Rf1 {[%clk 0:02:18]}  Ba6 {[%clk 0:02:11]} 17. f5 {[%clk 0:01:59]}  Ne5 {[%clk 0:02:05]} 18. Nf4 {[%clk 0:01:44]}  b3 {[%clk 0:01:47]} 19. c4 {[%clk 0:01:42]}  Bxc4 {[%clk 0:01:16]} 20. dxc4 {[%clk 0:01:40]}  Nxc4 {[%clk 0:01:17]} 21. Bc1 {[%clk 0:01:27]}  Bd4+ {[%clk 0:01:16]} 22. Kh1 {[%clk 0:01:24]}  Ne3 {[%clk 0:01:00]} 23. Bxe3 {[%clk 0:01:22]}  Bxe3 {[%clk 0:01:01]} 24. Nd5 {[%clk 0:01:20]}  Bd4 {[%clk 0:01:00]} 25. Qd3 {[%clk 0:01:13]}  Be5 {[%clk 0:01:00]} 26. Nc3 {[%clk 0:01:11]}  Qa5 {[%clk 0:00:57]} 27. Qc4 {[%clk 0:01:07]}  Kg7 {[%clk 0:00:41]} 28. Rfd1 {[%clk 0:01:06]}  Bxc3 {[%clk 0:00:11]} 29. Qxc3+ {[%clk 0:01:07]}  Qxc3 {[%clk 0:00:11]} 30. bxc3 {[%clk 0:01:08]}  Kf6 {[%clk 0:00:11]} 31. c4 {[%clk 0:00:54]}  Rfc8 {[%clk 0:00:06]} 32. Rb2 {[%clk 0:00:54]}  Rb6 {[%clk 0:00:06]} 33. Kh2 {[%clk 0:00:54]}  Kg7 {[%clk 0:00:06]} 34. Kg3 {[%clk 0:00:55]}  g5 {[%clk 0:00:06]} 35. h4 {[%clk 0:00:54]}  h6 {[%clk 0:00:07]} 36. Bf3 {[%clk 0:00:52]}  Kf6 {[%clk 0:00:07]} 37. Kf2 {[%clk 0:00:48]}  gxh4 {[%clk 0:00:06]} 38. Ke3 {[%clk 0:00:44]}  Kg5 {[%clk 0:00:06]} 39. Rh1 {[%clk 0:00:43]}  Rcb8 {[%clk 0:00:06]} 40. Be2 {[%clk 0:00:39]}  e6 {[%clk 0:00:07]} 41. Kf3 {[%clk 0:00:38]}  exf5 {[%clk 0:00:07]} 42. gxf5 {[%clk 0:00:36]}  Re8 {[%clk 0:00:07]} 43. Rg1+ {[%clk 0:00:32]}  Kf6 {[%clk 0:00:07]} 44. Kf4 {[%clk 0:00:31]}  Rb7 {[%clk 0:00:07]} 45. Rh1 {[%clk 0:00:30]}  Rbe7 {[%clk 0:00:07]} 46. Bf3 {[%clk 0:00:30]}  Rg8 {[%clk 0:00:06]} 47. Rbh2 {[%clk 0:00:22]}  Rb7 {[%clk 0:00:01]} 48. Rb2 {[%clk 0:00:22]}  Re7 {[%clk 0:00:01]} 49. Rxh4 {[%clk 0:00:22]}  Rg1 {[%clk 0:00:01]} 50. Rxh6+ {[%clk 0:00:21]}  Kg7 {[%clk 0:00:02]} 51. f6+ {[%clk 0:00:16]}  Kxh6 {[%clk 0:00:02]} 52. fxe7 {[%clk 0:00:16]}  Rg8 {[%clk 0:00:02]} 53. Kf5 {[%clk 0:00:14]}  Re8 {[%clk 0:00:01]} 54. Kf6 {[%clk 0:00:14]} 1-0


[Site "https://www.chess.com"]

[Event "Titled Tuesday Blitz March 21 Early 2023"]
[White "Omariev, Maksim"]
[Black "Tarnowska, Aleksandra"]
[WhiteFideId "4193423"]
[BlackFideId "1180967"]
[WhiteElo "2477"]
[BlackElo "1776"]
[Result "0-1"]
[Round "02"]
[TimeControl "180+2"]
[Date "2023.03.21"]
[WhiteClock "0:00:05"]
[BlackClock "0:00:02"]

1. g4 {[%clk 0:01:20]}  d5 {[%clk 0:02:40]} 2. Bg2 {[%clk 0:01:19]}  e5 {[%clk 0:02:38]} 3. d4 {[%clk 0:01:11]}  e4 {[%clk 0:02:31]} 4. c4 {[%clk 0:01:05]}  c6 {[%clk 0:02:14]} 5. h3 {[%clk 0:01:03]}  f5 {[%clk 0:02:08]} 6. g5 {[%clk 0:01:02]}  Bd6 {[%clk 0:01:55]} 7. cxd5 {[%clk 0:00:51]}  cxd5 {[%clk 0:01:47]} 8. Nc3 {[%clk 0:00:52]}  Ne7 {[%clk 0:01:40]} 9. h4 {[%clk 0:00:48]}  O-O {[%clk 0:01:16]} 10. Qb3 {[%clk 0:00:43]}  Bc7 {[%clk 0:01:07]} 11. Nh3 {[%clk 0:00:39]}  f4 {[%clk 0:01:04]} 12. Bxe4 {[%clk 0:00:33]}  Be6 {[%clk 0:00:42]} 13. f3 {[%clk 0:00:20]}  Kh8 {[%clk 0:00:32]} 14. Bd3 {[%clk 0:00:11]}  Nbc6 {[%clk 0:00:29]} 15. Nb5 {[%clk 0:00:11]}  Bb8 {[%clk 0:00:21]} 16. Bd2 {[%clk 0:00:05]}  a6 {[%clk 0:00:21]} 17. Qa4 {[%clk 0:00:04]}  Nc8 {[%clk 0:00:10]} 18. Nf2 {[%clk 0:00:03]}  Nb6 {[%clk 0:00:10]} 19. Qb3 {[%clk 0:00:02]}  axb5 {[%clk 0:00:11]} 20. Bxb5 {[%clk 0:00:03]}  Nxd4 {[%clk 0:00:11]} 21. Qc3 {[%clk 0:00:03]}  Nxb5 {[%clk 0:00:10]} 22. Qd3 {[%clk 0:00:03]}  Nd6 {[%clk 0:00:10]} 23. O-O {[%clk 0:00:02]}  Nbc4 {[%clk 0:00:10]} 24. Bc3 {[%clk 0:00:03]}  Nf5 {[%clk 0:00:06]} 25. h5 {[%clk 0:00:03]}  Qxg5+ {[%clk 0:00:06]} 26. Ng4 {[%clk 0:00:03]}  Ng3 {[%clk 0:00:05]} 27. Rf2 {[%clk 0:00:03]}  Bxg4 {[%clk 0:00:05]} 28. fxg4 {[%clk 0:00:03]}  Qxg4 {[%clk 0:00:06]} 29. Rg2 {[%clk 0:00:04]}  Qxh5 {[%clk 0:00:06]} 30. Qd4 {[%clk 0:00:03]}  Qh6 {[%clk 0:00:05]} 31. Qxd5 {[%clk 0:00:02]}  Ne5 {[%clk 0:00:04]} 32. Bxe5 {[%clk 0:00:01]}  Bxe5 {[%clk 0:00:04]} 33. Qxe5 {[%clk 0:00:02]}  Rae8 {[%clk 0:00:04]} 34. Qc5 {[%clk 0:00:02]}  Qf6 {[%clk 0:00:02]} 35. Qc4 {[%clk 0:00:02]}  Re3 {[%clk 0:00:02]} 36. Rf1 {[%clk 0:00:02]}  Rfe8 {[%clk 0:00:02]} 37. Rff2 {[%clk 0:00:03]}  Qe5 {[%clk 0:00:02]} 38. Qc7 {[%clk 0:00:03]}  Qxc7 {[%clk 0:00:01]} 39. Rxg3 {[%clk 0:00:03]}  Qc1+ {[%clk 0:00:01]} 40. Kg2 {[%clk 0:00:04]}  Rxg3+ {[%clk 0:00:02]} 41. Kh2 {[%clk 0:00:05]}  Qg1# {[%clk 0:00:02]} 0-1


[Site "https://www.chess.com"]

[Event "Titled Tuesday Blitz March 21 Early 2023"]
[White "ilya2700"]
[Black "Donskov, Anatoly"]
[BlackFideId "24143413"]
[WhiteElo "2133"]
[BlackElo "2247"]
[Result "0-1"]
[Round "02"]
[TimeControl "180+2"]
[Date "2023.03.21"]
[WhiteClock "0:00:01"]
[BlackClock "0:00:20"]

1. d4 {[%clk 0:03:00]}  d5 {[%clk 0:02:59]} 2. c4 {[%clk 0:03:00]}  dxc4 {[%clk 0:03:00]} 3. Nf3 {[%clk 0:03:00]}  Nf6 {[%clk 0:03:00]} 4. e3 {[%clk 0:02:59]}  e6 {[%clk 0:03:00]} 5. Bxc4 {[%clk 0:02:59]}  c5 {[%clk 0:03:00]} 6. O-O {[%clk 0:02:59]}  a6 {[%clk 0:03:01]} 7. a4 {[%clk 0:02:59]}  cxd4 {[%clk 0:03:00]} 8. exd4 {[%clk 0:02:59]}  Nc6 {[%clk 0:03:01]} 9. Nc3 {[%clk 0:02:59]}  Be7 {[%clk 0:03:01]} 10. Bg5 {[%clk 0:02:59]}  O-O {[%clk 0:02:59]} 11. d5 {[%clk 0:02:38]}  Nxd5 {[%clk 0:02:50]} 12. Bxd5 {[%clk 0:02:27]}  Bxg5 {[%clk 0:02:47]} 13. Bxc6 {[%clk 0:02:26]}  bxc6 {[%clk 0:02:45]} 14. Nxg5 {[%clk 0:02:21]}  Qxg5 {[%clk 0:02:45]} 15. Qf3 {[%clk 0:02:15]}  Rb8 {[%clk 0:02:38]} 16. Ne4 {[%clk 0:01:59]}  Qe5 {[%clk 0:02:22]} 17. b3 {[%clk 0:01:51]}  c5 {[%clk 0:02:21]} 18. Qe3 {[%clk 0:01:43]}  Qd5 {[%clk 0:01:49]} 19. Nxc5 {[%clk 0:01:41]}  Bb7 {[%clk 0:01:40]} 20. f3 {[%clk 0:01:29]}  Rfc8 {[%clk 0:01:36]} 21. b4 {[%clk 0:01:23]}  Qc4 {[%clk 0:01:19]} 22. Nd7 {[%clk 0:01:20]}  Ra8 {[%clk 0:01:04]} 23. Nb6 {[%clk 0:01:18]}  Qxb4 {[%clk 0:01:03]} 24. Rab1 {[%clk 0:00:52]}  Qe7 {[%clk 0:00:55]} 25. Nxa8 {[%clk 0:00:49]}  Bxa8 {[%clk 0:00:55]} 26. Rfc1 {[%clk 0:00:43]}  Rd8 {[%clk 0:00:54]} 27. Qc5 {[%clk 0:00:38]}  Qf6 {[%clk 0:00:51]} 28. Qc3 {[%clk 0:00:31]}  Qg5 {[%clk 0:00:48]} 29. Qc5 {[%clk 0:00:18]}  Bd5 {[%clk 0:00:48]} 30. Rd1 {[%clk 0:00:13]}  h5 {[%clk 0:00:47]} 31. Qc1 {[%clk 0:00:10]}  Qg6 {[%clk 0:00:47]} 32. Qc7 {[%clk 0:00:09]}  Qf6 {[%clk 0:00:38]} 33. Rb8 {[%clk 0:00:08]}  Rxb8 {[%clk 0:00:37]} 34. Qxb8+ {[%clk 0:00:09]}  Kh7 {[%clk 0:00:38]} 35. Qb1+ {[%clk 0:00:09]}  g6 {[%clk 0:00:36]} 36. a5 {[%clk 0:00:07]}  Qg5 {[%clk 0:00:35]} 37. Qd3 {[%clk 0:00:06]}  h4 {[%clk 0:00:35]} 38. h3 {[%clk 0:00:04]}  Qg3 {[%clk 0:00:30]} 39. Rf1 {[%clk 0:00:02]}  Qd6 {[%clk 0:00:28]} 40. Rd1 {[%clk 0:00:02]}  Qc5+ {[%clk 0:00:28]} 41. Qd4 {[%clk 0:00:02]}  Qxa5 {[%clk 0:00:29]} 42. Qf6 {[%clk 0:00:01]}  Qb6+ {[%clk 0:00:20]} 0-1


[Site "https://www.chess.com"]

[Event "Titled Tuesday Blitz March 21 Early 2023"]
[White "Gonzalez, Francisco Silva"]
[Black "Aung Thant Zin"]
[WhiteFideId "1512285"]
[BlackFideId "13000063"]
[WhiteElo "2074"]
[BlackElo "2278"]
[Result "1-0"]
[Round "02"]
[TimeControl "180+2"]
[Date "2023.03.21"]
[WhiteClock "0:00:46"]
[BlackClock "0:00:01"]

1. d4 {[%clk 0:02:50]}  Nf6 {[%clk 0:02:59]} 2. c4 {[%clk 0:02:51]}  e6 {[%clk 0:02:59]} 3. Nc3 {[%clk 0:02:51]}  Bb4 {[%clk 0:02:59]} 4. a3 {[%clk 0:02:52]}  Bxc3+ {[%clk 0:02:58]} 5. bxc3 {[%clk 0:02:53]}  O-O {[%clk 0:02:56]} 6. e3 {[%clk 0:02:53]}  c5 {[%clk 0:02:55]} 7. Bd3 {[%clk 0:02:54]}  Qa5 {[%clk 0:02:53]} 8. Bd2 {[%clk 0:02:53]}  d6 {[%clk 0:02:53]} 9. e4 {[%clk 0:02:53]}  e5 {[%clk 0:02:53]} 10. Nf3 {[%clk 0:02:52]}  Nc6 {[%clk 0:02:50]} 11. h3 {[%clk 0:02:50]}  cxd4 {[%clk 0:02:49]} 12. cxd4 {[%clk 0:02:50]}  Qb6 {[%clk 0:02:47]} 13. d5 {[%clk 0:02:50]}  Nd4 {[%clk 0:02:46]} 14. O-O {[%clk 0:02:42]}  h6 {[%clk 0:02:41]} 15. Rb1 {[%clk 0:02:40]}  Qc5 {[%clk 0:02:36]} 16. Bb4 {[%clk 0:02:36]}  Nxf3+ {[%clk 0:02:35]} 17. Qxf3 {[%clk 0:02:36]}  Qc7 {[%clk 0:02:36]} 18. Bd2 {[%clk 0:02:32]}  Nd7 {[%clk 0:02:34]} 19. Qg3 {[%clk 0:02:31]}  Kh8 {[%clk 0:02:33]} 20. f4 {[%clk 0:02:31]}  exf4 {[%clk 0:02:25]} 21. Bxf4 {[%clk 0:02:30]}  Ne5 {[%clk 0:02:25]} 22. Bxe5 {[%clk 0:02:29]}  dxe5 {[%clk 0:02:25]} 23. Qe3 {[%clk 0:02:28]}  b6 {[%clk 0:02:19]} 24. c5 {[%clk 0:02:24]}  bxc5 {[%clk 0:02:08]} 25. Rbc1 {[%clk 0:02:07]}  Qa5 {[%clk 0:01:45]} 26. Qxc5 {[%clk 0:01:55]}  Qd8 {[%clk 0:01:45]} 27. Qc7 {[%clk 0:01:50]}  Qg5 {[%clk 0:01:32]} 28. Kh2 {[%clk 0:01:43]}  Bxh3 {[%clk 0:00:51]} 29. Kxh3 {[%clk 0:01:41]}  Rac8 {[%clk 0:00:16]} 30. Qd6 {[%clk 0:01:34]}  Qe3+ {[%clk 0:00:07]} 31. g3 {[%clk 0:01:28]}  Qxd3 {[%clk 0:00:07]} 32. Rxf7 {[%clk 0:01:24]}  Rxf7 {[%clk 0:00:06]} 33. Rxc8+ {[%clk 0:01:21]}  Kh7 {[%clk 0:00:06]} 34. Rc1 {[%clk 0:01:01]}  Qxe4 {[%clk 0:00:06]} 35. Qe6 {[%clk 0:01:00]}  Qf3 {[%clk 0:00:01]} 36. Rc4 {[%clk 0:00:46]} 1-0


[Site "https://www.chess.com"]

[Event "Titled Tuesday Blitz March 21 Early 2023"]
[White "Vargas Pereda, Jesus Manue"]
[Black "Sreyas Payyappat"]
[WhiteFideId "5115710"]
[BlackFideId "46674969"]
[WhiteElo "1914"]
[BlackElo "2083"]
[Result "0-1"]
[Round "02"]
[TimeControl "180+2"]
[Date "2023.03.21"]
[WhiteClock "0:00:36"]
[BlackClock "0:01:50"]

1. d4 {[%clk 0:03:00]}  Nf6 {[%clk 0:02:58]} 2. Bf4 {[%clk 0:03:01]}  c5 {[%clk 0:02:56]} 3. e3 {[%clk 0:03:00]}  e6 {[%clk 0:02:56]} 4. Nd2 {[%clk 0:02:57]}  Nc6 {[%clk 0:02:56]} 5. Bd3 {[%clk 0:02:56]}  d5 {[%clk 0:02:50]} 6. Ngf3 {[%clk 0:02:55]}  c4 {[%clk 0:02:47]} 7. Be2 {[%clk 0:02:54]}  Bd6 {[%clk 0:02:43]} 8. Bg3 {[%clk 0:02:51]}  O-O {[%clk 0:02:41]} 9. c3 {[%clk 0:02:51]}  Rb8 {[%clk 0:02:37]} 10. a4 {[%clk 0:02:47]}  a6 {[%clk 0:02:36]} 11. O-O {[%clk 0:02:20]}  b5 {[%clk 0:02:34]} 12. axb5 {[%clk 0:02:02]}  axb5 {[%clk 0:02:35]} 13. Ne5 {[%clk 0:02:01]}  Bxe5 {[%clk 0:02:29]} 14. dxe5 {[%clk 0:02:00]}  Nd7 {[%clk 0:02:29]} 15. f4 {[%clk 0:02:00]}  b4 {[%clk 0:02:26]} 16. Nf3 {[%clk 0:01:56]}  bxc3 {[%clk 0:02:23]} 17. bxc3 {[%clk 0:01:56]}  Nc5 {[%clk 0:02:24]} 18. Bh4 {[%clk 0:01:36]}  Qb6 {[%clk 0:02:21]} 19. Nd4 {[%clk 0:01:17]}  Ne4 {[%clk 0:02:12]} 20. Qc2 {[%clk 0:01:03]}  Nxd4 {[%clk 0:02:08]} 21. exd4 {[%clk 0:01:02]}  Qb2 {[%clk 0:02:07]} 22. Qxb2 {[%clk 0:00:38]}  Rxb2 {[%clk 0:02:08]} 23. Bf3 {[%clk 0:00:38]}  Nxc3 {[%clk 0:02:06]} 24. Rfc1 {[%clk 0:00:36]}  Nb5 {[%clk 0:01:50]} 0-1


[Site "https://www.chess.com"]

[Event "Titled Tuesday Blitz March 21 Early 2023"]
[White "Lwanga, Aguda"]
[Black "Escanor89"]
[WhiteFideId "10801529"]
[WhiteElo "1475"]
[BlackElo "2456"]
[Result "1-0"]
[Round "02"]
[TimeControl "180+2"]
[Date "2023.03.21"]
[WhiteClock "0:00:19"]
[BlackClock "0:00:01"]

1. e4 {[%clk 0:03:00]}  c5 {[%clk 0:02:59]} 2. Nf3 {[%clk 0:02:59]}  e6 {[%clk 0:03:00]} 3. d4 {[%clk 0:02:58]}  cxd4 {[%clk 0:03:00]} 4. Nxd4 {[%clk 0:02:55]}  Nf6 {[%clk 0:03:00]} 5. Nc3 {[%clk 0:02:54]}  Nc6 {[%clk 0:02:59]} 6. Be2 {[%clk 0:02:51]}  Bb4 {[%clk 0:02:55]} 7. O-O {[%clk 0:02:47]}  Bxc3 {[%clk 0:02:54]} 8. Nxc6 {[%clk 0:02:43]}  bxc6 {[%clk 0:02:43]} 9. bxc3 {[%clk 0:02:40]}  Nxe4 {[%clk 0:02:43]} 10. Qd4 {[%clk 0:02:39]}  d5 {[%clk 0:02:08]} 11. Qxg7 {[%clk 0:02:34]}  Qf6 {[%clk 0:02:07]} 12. Qxf6 {[%clk 0:02:32]}  Nxf6 {[%clk 0:02:06]} 13. Bf4 {[%clk 0:02:31]}  a5 {[%clk 0:01:57]} 14. Rab1 {[%clk 0:02:30]}  Nd7 {[%clk 0:01:53]} 15. Rb2 {[%clk 0:02:26]}  e5 {[%clk 0:01:51]} 16. Be3 {[%clk 0:02:24]}  Ke7 {[%clk 0:01:50]} 17. Rfb1 {[%clk 0:02:22]}  Ba6 {[%clk 0:01:45]} 18. Bxa6 {[%clk 0:02:16]}  Rxa6 {[%clk 0:01:46]} 19. g3 {[%clk 0:02:16]}  f6 {[%clk 0:01:42]} 20. f4 {[%clk 0:02:14]}  h5 {[%clk 0:01:38]} 21. Kf2 {[%clk 0:02:10]}  a4 {[%clk 0:01:37]} 22. a3 {[%clk 0:02:03]}  Kd6 {[%clk 0:01:28]} 23. Rb7 {[%clk 0:02:03]}  Rg8 {[%clk 0:01:24]} 24. Ke2 {[%clk 0:01:59]}  h4 {[%clk 0:01:24]} 25. Rg1 {[%clk 0:01:39]}  Raa8 {[%clk 0:01:10]} 26. fxe5+ {[%clk 0:01:32]}  fxe5 {[%clk 0:01:10]} 27. g4 {[%clk 0:01:32]}  Nf6 {[%clk 0:01:03]} 28. g5 {[%clk 0:01:26]}  Ne4 {[%clk 0:01:01]} 29. g6 {[%clk 0:01:25]}  Nxc3+ {[%clk 0:00:59]} 30. Kd3 {[%clk 0:01:25]}  d4 {[%clk 0:00:52]} 31. Bg5 {[%clk 0:01:20]}  Nd5 {[%clk 0:00:39]} 32. g7 {[%clk 0:01:18]}  Rae8 {[%clk 0:00:26]} 33. Bxh4 {[%clk 0:01:15]}  Re6 {[%clk 0:00:20]} 34. Bg3 {[%clk 0:01:06]}  Nc7 {[%clk 0:00:18]} 35. h4 {[%clk 0:01:00]}  Na6 {[%clk 0:00:15]} 36. Ra7 {[%clk 0:00:52]}  Nc5+ {[%clk 0:00:15]} 37. Kd2 {[%clk 0:00:48]}  Nd7 {[%clk 0:00:11]} 38. h5 {[%clk 0:00:45]}  Rh6 {[%clk 0:00:09]} 39. Rxa4 {[%clk 0:00:42]}  Rxh5 {[%clk 0:00:08]} 40. Rxd4+ {[%clk 0:00:40]}  Kc7 {[%clk 0:00:07]} 41. Rg4 {[%clk 0:00:37]}  Nf6 {[%clk 0:00:06]} 42. Rg6 {[%clk 0:00:34]}  Ne4+ {[%clk 0:00:06]} 43. Kd3 {[%clk 0:00:29]}  Nc5+ {[%clk 0:00:04]} 44. Kc4 {[%clk 0:00:26]}  Ne4 {[%clk 0:00:03]} 45. Be1 {[%clk 0:00:22]}  Kd7 {[%clk 0:00:02]} 46. Bb4 {[%clk 0:00:20]}  Rh7 {[%clk 0:00:01]} 47. Bf8 {[%clk 0:00:19]} 1-0


[Site "https://www.chess.com"]

[Event "Titled Tuesday Blitz March 21 Early 2023"]
[White "Vogel, Roven"]
[Black "Carlsen, Magnus"]
[WhiteFideId "12908088"]
[BlackFideId "1503014"]
[WhiteElo "2518"]
[BlackElo "2852"]
[Result "1/2-1/2"]
[Round "03"]
[TimeControl "180+2"]
[Date "2023.03.21"]
[WhiteClock "0:00:03"]
[BlackClock "0:00:08"]

1. d4 {[%clk 0:03:00]}  Nf6 {[%clk 0:02:56]} 2. c4 {[%clk 0:03:00]}  g6 {[%clk 0:02:52]} 3. Nc3 {[%clk 0:03:00]}  Bg7 {[%clk 0:02:45]} 4. e4 {[%clk 0:03:00]}  d6 {[%clk 0:02:46]} 5. Nf3 {[%clk 0:03:01]}  O-O {[%clk 0:02:45]} 6. Be2 {[%clk 0:03:01]}  c6 {[%clk 0:02:44]} 7. O-O {[%clk 0:03:01]}  e5 {[%clk 0:02:44]} 8. d5 {[%clk 0:03:01]}  Na6 {[%clk 0:02:39]} 9. Be3 {[%clk 0:02:59]}  Ng4 {[%clk 0:02:39]} 10. Bg5 {[%clk 0:02:59]}  f6 {[%clk 0:02:39]} 11. Bh4 {[%clk 0:02:57]}  c5 {[%clk 0:02:38]} 12. Ne1 {[%clk 0:02:53]}  Nh6 {[%clk 0:02:34]} 13. Nd3 {[%clk 0:02:51]}  g5 {[%clk 0:02:24]} 14. Bg3 {[%clk 0:02:51]}  f5 {[%clk 0:02:25]} 15. exf5 {[%clk 0:02:51]}  Bxf5 {[%clk 0:02:11]} 16. Bf3 {[%clk 0:02:47]}  Nc7 {[%clk 0:01:39]} 17. Be4 {[%clk 0:02:40]}  b5 {[%clk 0:01:31]} 18. cxb5 {[%clk 0:02:34]}  Bxe4 {[%clk 0:01:28]} 19. Nxe4 {[%clk 0:02:34]}  Nxb5 {[%clk 0:01:28]} 20. Qc1 {[%clk 0:02:21]}  g4 {[%clk 0:01:10]} 21. b4 {[%clk 0:02:21]}  cxb4 {[%clk 0:01:09]} 22. Nxb4 {[%clk 0:02:19]}  Nd4 {[%clk 0:01:07]} 23. Qd1 {[%clk 0:01:54]}  Rc8 {[%clk 0:01:04]} 24. Nc6 {[%clk 0:01:53]}  Nxc6 {[%clk 0:01:00]} 25. dxc6 {[%clk 0:01:54]}  d5 {[%clk 0:01:01]} 26. Qb3 {[%clk 0:01:39]}  Nf5 {[%clk 0:00:45]} 27. Nc3 {[%clk 0:01:34]}  Rxc6 {[%clk 0:00:40]} 28. Nxd5 {[%clk 0:01:21]}  Kh8 {[%clk 0:00:40]} 29. Ne3 {[%clk 0:01:18]}  Nd4 {[%clk 0:00:39]} 30. Qa4 {[%clk 0:01:18]}  h5 {[%clk 0:00:37]} 31. Nc4 {[%clk 0:00:38]}  Qd5 {[%clk 0:00:23]} 32. Ne3 {[%clk 0:00:37]}  Qe4 {[%clk 0:00:23]} 33. Qxa7 {[%clk 0:00:36]}  Rc3 {[%clk 0:00:14]} 34. Rae1 {[%clk 0:00:32]}  Ra8 {[%clk 0:00:13]} 35. Qf7 {[%clk 0:00:31]}  Qh7 {[%clk 0:00:10]} 36. Nd5 {[%clk 0:00:30]}  Rc5 {[%clk 0:00:07]} 37. Nf6 {[%clk 0:00:31]}  Qh6 {[%clk 0:00:04]} 38. Nxh5 {[%clk 0:00:30]}  Nc6 {[%clk 0:00:02]} 39. Nxg7 {[%clk 0:00:24]}  Qxg7 {[%clk 0:00:03]} 40. Qxg7+ {[%clk 0:00:21]}  Kxg7 {[%clk 0:00:03]} 41. Rc1 {[%clk 0:00:21]}  Rxc1 {[%clk 0:00:03]} 42. Rxc1 {[%clk 0:00:22]}  Ra6 {[%clk 0:00:04]} 43. f3 {[%clk 0:00:20]}  gxf3 {[%clk 0:00:03]} 44. gxf3 {[%clk 0:00:21]}  Kf6 {[%clk 0:00:04]} 45. Rc2 {[%clk 0:00:19]}  Nd4 {[%clk 0:00:04]} 46. Rf2 {[%clk 0:00:18]}  Ra3 {[%clk 0:00:04]} 47. Kg2 {[%clk 0:00:18]}  Kf5 {[%clk 0:00:05]} 48. h4 {[%clk 0:00:18]}  Ra8 {[%clk 0:00:03]} 49. Rd2 {[%clk 0:00:16]}  Ra3 {[%clk 0:00:03]} 50. Rf2 {[%clk 0:00:11]}  Ra8 {[%clk 0:00:03]} 51. Bh2 {[%clk 0:00:09]}  Rg8+ {[%clk 0:00:03]} 52. Kh3 {[%clk 0:00:09]}  Ra8 {[%clk 0:00:04]} 53. Bg3 {[%clk 0:00:08]}  Ra3 {[%clk 0:00:04]} 54. h5 {[%clk 0:00:07]}  Nxf3 {[%clk 0:00:04]} 55. h6 {[%clk 0:00:07]}  Kg6 {[%clk 0:00:04]} 56. Kg4 {[%clk 0:00:06]}  e4 {[%clk 0:00:05]} 57. Kf4 {[%clk 0:00:06]}  Ng5 {[%clk 0:00:04]} 58. Rc2 {[%clk 0:00:04]}  Ne6+ {[%clk 0:00:02]} 59. Ke5 {[%clk 0:00:04]}  Rxg3 {[%clk 0:00:02]} 60. Kxe6 {[%clk 0:00:04]}  Kxh6 {[%clk 0:00:02]} 61. Re2 {[%clk 0:00:05]}  e3 {[%clk 0:00:02]} 62. Kf5 {[%clk 0:00:05]}  Rg5+ {[%clk 0:00:02]} 63. Kf4 {[%clk 0:00:05]}  Ra5 {[%clk 0:00:03]} 64. Kxe3 {[%clk 0:00:05]}  Kg6 {[%clk 0:00:03]} 65. Rf2 {[%clk 0:00:06]}  Ra4 {[%clk 0:00:02]} 66. Kd3 {[%clk 0:00:06]}  Kg5 {[%clk 0:00:02]} 67. Kc3 {[%clk 0:00:06]}  Ra8 {[%clk 0:00:03]} 68. Kb3 {[%clk 0:00:06]}  Rb8+ {[%clk 0:00:04]} 69. Kc2 {[%clk 0:00:06]}  Ra8 {[%clk 0:00:04]} 70. Kb2 {[%clk 0:00:06]}  Rb8+ {[%clk 0:00:05]} 71. Ka1 {[%clk 0:00:07]}  Ra8 {[%clk 0:00:06]} 72. Rf3 {[%clk 0:00:07]}  Kg4 {[%clk 0:00:06]} 73. Rf1 {[%clk 0:00:08]}  Kg5 {[%clk 0:00:06]} 74. Rf2 {[%clk 0:00:08]}  Kg4 {[%clk 0:00:06]} 75. Rf1 {[%clk 0:00:08]}  Kg5 {[%clk 0:00:06]} 76. Rf3 {[%clk 0:00:06]}  Kg4 {[%clk 0:00:07]} 77. Rd3 {[%clk 0:00:05]}  Kf4 {[%clk 0:00:07]} 78. Kb2 {[%clk 0:00:06]}  Ke4 {[%clk 0:00:08]} 79. Rb3 {[%clk 0:00:06]}  Kd5 {[%clk 0:00:08]} 80. Rc3 {[%clk 0:00:03]} 1/2-1/2


[Site "https://www.chess.com"]

[Event "Titled Tuesday Blitz March 21 Early 2023"]
[White "Kravtsiv, Martyn"]
[Black "Andreikin, Dmitry"]
[WhiteFideId "14113147"]
[BlackFideId "4158814"]
[WhiteElo "2695"]
[BlackElo "2736"]
[Result "0-1"]
[Round "03"]
[TimeControl "180+2"]
[Date "2023.03.21"]
[WhiteClock "0:00:13"]
[BlackClock "0:00:42"]

1. e4 {[%clk 0:03:00]}  e5 {[%clk 0:03:00]} 2. Nf3 {[%clk 0:03:00]}  Nc6 {[%clk 0:03:00]} 3. Nc3 {[%clk 0:03:00]}  Nf6 {[%clk 0:03:00]} 4. a4 {[%clk 0:03:00]}  Bc5 {[%clk 0:02:54]} 5. Nxe5 {[%clk 0:02:58]}  O-O {[%clk 0:02:54]} 6. Nxc6 {[%clk 0:02:56]}  dxc6 {[%clk 0:02:55]} 7. f3 {[%clk 0:02:50]}  Nh5 {[%clk 0:02:24]} 8. g3 {[%clk 0:02:47]}  f5 {[%clk 0:02:24]} 9. Qe2 {[%clk 0:02:46]}  Kh8 {[%clk 0:02:22]} 10. Bg2 {[%clk 0:02:33]}  f4 {[%clk 0:02:04]} 11. g4 {[%clk 0:02:32]}  Bxg4 {[%clk 0:01:50]} 12. fxg4 {[%clk 0:02:24]}  Qh4+ {[%clk 0:01:39]} 13. Kd1 {[%clk 0:02:16]}  f3 {[%clk 0:01:39]} 14. Bxf3 {[%clk 0:02:15]}  Nf4 {[%clk 0:01:25]} 15. Qc4 {[%clk 0:01:41]}  Nh3 {[%clk 0:01:19]} 16. Qxc5 {[%clk 0:01:27]}  Rxf3 {[%clk 0:01:18]} 17. d3 {[%clk 0:01:12]}  Qxg4 {[%clk 0:01:02]} 18. Ne2 {[%clk 0:00:35]}  Nf2+ {[%clk 0:01:02]} 19. Ke1 {[%clk 0:00:34]}  Nxh1 {[%clk 0:00:58]} 20. Bf4 {[%clk 0:00:29]}  Rxf4 {[%clk 0:00:44]} 21. Nxf4 {[%clk 0:00:28]}  Qxf4 {[%clk 0:00:45]} 22. Ke2 {[%clk 0:00:23]}  Qxh2+ {[%clk 0:00:44]} 23. Kd1 {[%clk 0:00:14]}  Nf2+ {[%clk 0:00:43]} 24. Kc1 {[%clk 0:00:13]}  Qg1+ {[%clk 0:00:42]} 0-1


[Site "https://www.chess.com"]